Workbook

Sheet depart
D11: SAISIE | G11: RESULTATS
D13: C.RESULTAT N-2 | E13: BILAN N-2 | G13: SIG N-2 | H13: CAF N-2
D14: C.RESULTAT N-1 | E14: BILAN N-1 | G14: SIG N-1 | H14: CAF N-1
D15: C.RESULTAT N | E15: BILAN N | G15: SIG N | H15: CAF N
G16: Comparatif SIG & CAF
G17: Delai clients & fournisseurs
G18: Bilan fonctionnel
G19: Ratios
G20: Score de Conan & Holder
G30: moret.hugues@orange.fr

Sheet C.Résultat 2008 + SIG + CAF
B2: COMPTE DE RESULTAT 2008
B4: Ent : | D4: exercice N-2
D5: France | E5: Exportation | F5: Total
B6: produits d'exploitation | C6: ventes march | F6: =E6+D6 -> 0 | M6: PCG | N6: CDB | O6: CNC
C7: X° biens vendue | D7: 130891 | F7: =E7+D7 -> 130891 | L7: Marge commerciale | M7: =F77 -> 0 | N7: =J77 -> 0 | O7: =M77 -> 0
C8: X°servicevendue | D8: 0 | F8: =E8+D8 -> 0 | L8: Production de l'exercice | M8: =F83 -> 0 | N8: =J83 -> 0 | O8: =M83 -> 0
C9: CA nets | D9: =SUM(D6:D8) -> 130891 | E9: =SUM(E6:E8) -> 0 | F9: =SUM(F6:F8) -> 130891 | L9: Valeur ajoutée | M9: =F91 -> 0 | N9: =J93 -> 0 | O9: =M94 -> 0
C10: production stockée | F10: 12820 | L10: Excédent brut d'exploitation | M10: =F98 -> 0 | N10: =J100 -> 0 | O10: =M103 -> 0
C11: production immobilisée | L11: E.B.E. corrigé | O11: =M112 -> 0
C12: subventions d'exploitation | F12: 0 | L12: Résultat d'exploitation | M12: =F107 -> 0 | N12: =J110 -> 0 | O12: =M118 -> 0
C13: reprises sur amortissements et prov, transfert ch. | G13: dont Tr. Ch. | L13: Résultat économique avant impôt | O13: =M126 -> 0
C14: autres produits | F14: 0 | L14: Résultat courant avant impôt | M14: =F115 -> 0 | N14: =J119 -> 0 | O14: =M132 -> 0
C15: total des produits d'exploitation | F15: =SUM(F9:F14) -> 143711 | L15: Résultat exceptionnel | M15: =F120 -> 0 | N15: =J124 -> 0 | O15: =M137 -> 0
B16: charges d'exploitation | C16: achats de marchandises(y compris droits douane) | L16: Résultat de l'exercice | M16: =F127 -> 0 | N16: =J129 -> 0 | O16: =M144 -> 0
C17: variation de stock (marchandises) | L17: + ou - values de cession | M17: =F132 -> 0
C18: achats de matières premièreset autres approv | F18: 46155
C19: variation de stock (mat 1ère et approv) | L19: CAF | M19: =F147 -> 0 | N19: =F162 -> 0
C20: autres achats et charges externes | F20: 19114 | G20: =F16+F17+F18+F19 -> 46155 | H20: achats et charges externes
C21: impôts, taxes et versements assimilés | F21: 4990
C22: salaires et traitements | F22: 25917
C23: charges sociales | F23: 16071
C24: D Amort/ immobilisations | F24: 3037
C25: D. Prov / immobilisations
C26: dot aux provisions actif circulant
C27: dot aux provisions pour risques et charges
C28: autres charges
C29: Total des charges d'exploitation | F29: =SUM(F18:F24) -> 115284
B30: 1. RESULTAT D'EXPLOITATION | F30: =F15-F29 -> 28427
C31: bénéfice attribué ou perte transférée
C32: perte supportée ou bénéfice transféré
B33: produits financiers | C33: produits financiers de participations
C34: produits des autres valeurs mob et créances actif im
C35: autres intérêts et produits assimilés
C36: reprises sur provisions et transferts de charges | G36: dont Tr. Ch.
C37: différences positives de change
C38: produits nets sur cessions de VMP
C39: total des produits financiers
B40: charges financieres | C40: dot financières aux amortissements et provisions
C41: intérêts et charges assimilées | F41: 342
C42: différences négatives de change
C43: charges nettes sur cession de VMP
C44: total des charges financières | F44: =SUM(F40:F43) -> 342
B45: 2. RESULTAT FINANCIER | F45: =F39-F44 -> -342
B46: 3. RESULTAT COURANT AVANT IMPOTS | F46: =F30+F45 -> 28085
B47: produits exceptionnels | C47: produits exceptionnels sur opérations de gestion | F47: 4
C48: produits exceptionnels sur opérations en capital
C49: reprises sur provisions et transferts de charges | G49: dont Tr. Ch.
C50: Total des produits exceptionnels | F50: =SUM(F47:F49) -> 4
B51: charges exceptionnelles | C51: charges exceptionnelles sur opérations de gestion
C52: charges exceptionnelles sur opérations en capital
C53: dot. Exceptionnelles aux amortissements et prov.
C54: total des charges exceptionnelles | F54: =SUM(F51:F53) -> 0
B55: 3. RESULTAT EXCEPTIONNEL | F55: =F50-F54 -> 4
B56: Participation des salariés aux résultats de l'entreprise
B57: Impôts sur les bénéfices
B58: TOTAL DES PRODUITS | F58: =F15+F31+F39+F50 -> 143715
B59: TOTAL DES CHARGES | F59: =F29+F32+F44+F54+F56+F57 -> 115626
B60: 4. BENEFICE OU PERTE | F60: =F58-F59 -> 28089
E61: Dont 675
E62: Dont 775
E63: Dont 777 | F63: =F48-F62 -> 0
G65: Amt | H65: Fin.
E66: Sous-traitance
E67: Personnel extérieur
E68: Loyers de Crédit-Bail
E70: S.I.G. PCG N-2 | I70: S.I.G. CDB N-2 | L70: S.I.G. CNC N-2
E73: Marge comerciale | I73: Marge comerciale | L73: Marge comerciale
E74: Ventes de marchandises | F74: =D6 -> 0 | I74: Ventes de marchandises | L74: Ventes de marchandises
E75: - Achats de marchandises | F75: =F16 -> 0 | I75: - Achats de marchandises | L75: - Achats de marchandises
E76: - Variation de stock de marchandises | F76: =F17 -> 0 | I76: - Variation de stock de marchandises | L76: - Variation de stock de marchandises
F77: =F74-F75+F76 -> 0
E79: Production de l'exercice | I79: Production de l'exercice | L79: Production de l'exercice
E80: Ventes et prestations | F80: =F7 -> 130891 | I80: Ventes et prestations | L80: Ventes et prestations
E81: + Production stockée | F81: =F18 -> 46155 | I81: + Production stockée | L81: + Production stockée
E82: + Production immobilisée | I82: + Production immobilisée | L82: + Production immobilisée
E85: Valeur ajoutée | I85: Valeur ajoutée | L85: Valeur ajoutée
E86: Marge commerciale | I86: Marge commerciale | L86: Marge commerciale
E87: + Production de l'exercice | I87: + Production de l'exercice | L87: + Production de l'exercice
E88: - Achats de MP et appro | I88: + Subventions d'exploitation | L88: - Achats de MP et appro
E89: - Variation de stocks de MP et appro | I89: - Achats de MP et appro | L89: - Variation de stocks de MP et appro
E90: -Autres charges externes | I90: - Variation de stocks de MP et appro | L90: - Autres charges externes
I91: - Autres charges externes (sauf 612 et 621) | L91: + Loyers de crédit bail
I92: - Impôts et taxes | L92: + Personnel intérimaire
E93: Excédent brut d'exploitation | L93: + Frais de sous traitance
E94: Valeur ajoutée
E95: + Subventions d'exploitation | I95: Excédent brut d'exploitation
E96: - Impôts et taxes | I96: Valeur ajoutée | L96: Excédent brut d'exploitation
E97: - Charges de personnel | I97: - Charges de personnel | L97: Valeur ajoutée
I98: - personnel intérimaire | L98: + Subventions d'exploitation
I99: - participation des salariés | L99: - Impôts et taxes
E100: Résultat d'exploitation | L100: - Charges de personnel
E101: E.B.E. | L101: - Personnel intérimaire
E102: + Autres produits | I102: Résultat d'exploitation | L102: - Frais de sous traitance
E103: + Reprises sur provisions d'exploitation | I103: E.B.E.
E104: + Transferts de charges | I104: + Autres produits
E105: - Dotations d'exploitation | I105: + Reprises sur provisions d'exploitation | L105: E.B.E. corrigé
E106: - Autres charges | I106: + Transferts de charges | L106: E.B.E.
I107: - Dotations d'exploitation | L107: + Reprises sur provisions d'exploitation
I108: - Autres charges | L108: +Transferts de charges d'exploitation
E109: Résultat courant avant impôts | I109: - Part de capital en Crédit bail | L109: + Autres produits
E110: Résultat d'exploitation | L110: - Dotations aux provisions d'exploitation
E111: + Quote part sur opérations en commun | L111: - Autres charges
E112: + Produits financiers | I112: Résultat courant avant impôts
E113: - Quote part sur opérations en commun | I113: Résultat d'exploitation
E114: - Charges financières | I114: + Quote part sur opérations en commun | L114: Résultat d'exploitation
I115: + Produits financiers | L115: E.B.E. corrigé
I116: - Quote part sur opérations en commun | L116: - Dotations aux amortissements d'exploitation
E117: Résultat exceptionnel | I117: - Charges financières | L117: - Part en capital en Crédit bail
E118: Produits exceptionnels | I118: - Part financière en Crédit bail
E119: - Charges exceptionnelles
I121: Résultat exceptionnel | L121: Résultat d'exploitation
E122: Résultat net comptable | I122: Produits exceptionnels | L122: + Quote part sur opérations en commun
E123: Résultat courant avant impôts | I123: - Charges exceptionnelles | L123: + Produits financiers
E124: + Résultat exceptionnel | L124: - Quote part sur opérations en commun
E125: - Impôt sur les bénéfices | L125: - Charges financières sauf intérêts
E126: - Participation des salariés | I126: Résultat net comptable
I127: Résultat courant avant impôts
I128: + Résultat exceptionnel | L128: Résultat courant
E129: + ou - values de cession | I129: - Impôt sur les bénéfices | L129: Résultat économique avant impôt
E130: Produits des cesions d'éléments d'actif | L130: - Charges d'intérêts
E131: - Valeur comptable des éléments d'actif cédés | I131: V.A. Globale | L131: - Part d'intérêts en Crédit bail
I132: Valeur ajoutée
I133: + Autres produits
I134: + Quote part | L134: Résultat exceptionnel
E135: CAF PCG N-2 | I135: + Produits financiers de participation | L135: Produits exceptionnels
I136: + Produits des autres VM | L136: - Charges exceptionnelles
E137: '= E.B.E. | I137: + Autres intérêts et pdts assimilés
E138: + Autres produits | I138: + Différences positives de change
E139: + Produits financiers | I139: + Produits nets sur cessions de VMP | L139: Résultat de l'exercice
E140: + Produits exceptionnels (sauf 775 et 777) | I140: + Produits exceptionnels sur opératº en capital | L140: Résultat courant avant impôts
E141: + Transfert de charges d'exploitation | I141: - Autres charges | L141: + Résultat exceptionnel
E142: - Autres charges | I142: - Quote part | L142: - Impôt sur les bénéfices
E143: - Charges financières | I143: - Différence négatives de change | L143: - Participation des salariés
E144: - Charges exceptionnelles (sauf 675) | I144: - Charges nettes sur cessions de VMP
E145: - Participation des salariés | I145: - Charges exceptionnelles / opératº en capital
E146: - Impôt net sur les bénéfices
I148: E.B. Global
E149: Vérification | I149: V.A. Globale
E150: Résultat net comptable | I150: - Charges de personnel
E151: + Valeur comptable des éléments d'actif cédés | I151: - Personnel intérimaire
E152: + Dotations aux amortissements | I152: - Participation des salariés
E153: - Produits sur cession d'éléments d'actif
E154: - Quote part de subventº virées au résultat
E155: - Reprises sur amort et provisions
I156: CAF CDB
I158: '= E.B. Global
I159: - Charges d'intérêts
I160: - Part d'intérêts en Crédit bail
I161: - Impôts sur les bénéfices

Sheet C.Résultat 2009 + SIG + CAF
B2: COMPTE DE RESULTAT 2009
B4: Ent : SIGUE | D4: exercice
D5: France | E5: Exportation | F5: Total
B6: produits d'exploitation | C6: ventes march | F6: =$D$6 -> 0 | M6: PCG | N6: CDB | O6: CNC
C7: X° biens vendue | F7: =$D$7 -> 0 | L7: Marge commerciale | M7: =F77 -> 183340 | N7: =J77 -> 0 | O7: =M77 -> 0
C8: X°servicevendue | F8: =$D$8 -> 0 | L8: Production de l'exercice | M8: =F83 -> 2470 | N8: =J83 -> 0 | O8: =M83 -> 0
C9: CA nets | D9: =SUM(D6:D8) -> 0 | E9: =SUM(E6:E8) -> 0 | F9: 268724 | L9: Valeur ajoutée | M9: =F91 -> 140125 | N9: =J93 -> 0 | O9: =M94 -> 0
C10: production stockée | F10: 2470 | L10: Excédent brut d'exploitation | M10: =F98 -> 32076 | N10: =J100 -> 0 | O10: =M103 -> 0
C11: production immobilisée | L11: E.B.E. corrigé | O11: =M112 -> 0
C12: subventions d'exploitation | F12: 2709 | L12: Résultat d'exploitation | M12: =F107 -> 25952 | N12: =J110 -> 0 | O12: =M118 -> 0
C13: reprises sur amortissements et prov, transfert ch. | G13: dont Tr. Ch. | L13: Résultat économique avant impôt | O13: =M126 -> 0
C14: autres produits | L14: Résultat courant avant impôt | M14: =F115 -> 25943 | N14: =J119 -> 0 | O14: =M132 -> 0
C15: total des produits d'exploitation | F15: =SUM(F9:F14) -> 273903 | L15: Résultat exceptionnel | M15: =F120 -> 0 | N15: =J124 -> 0 | O15: =M137 -> 0
B16: charges d'exploitation | C16: achats de marchandises(y compris droits douane) | L16: Résultat de l'exercice | M16: =F127 -> 25943 | N16: =J129 -> 0 | O16: =M144 -> 0
C17: variation de stock (marchandises) | G17: =F16+F17+F18+F19 -> 85384 | H17: achats et charges externes | L17: + ou - values de cession | M17: =F132 -> 0
C18: achats de matières premièreset autres approv | F18: 92663
C19: variation de stock (mat 1ère et approv) | F19: -7279 | L19: CAF | M19: =F147 -> 32067 | N19: =F162 -> 0
C20: autres achats et charges externes | F20: 45685
C21: impôts, taxes et versements assimilés | F21: 7371
C22: salaires et traitements | F22: 64420
C23: charges sociales | F23: 38967
C24: D Amort/ immobilisations | F24: 6124
C25: D. Prov / immobilisations
C26: dot aux provisions actif circulant
C27: dot aux provisions pour risques et charges
C28: autres charges
C29: Total des charges d'exploitation | F29: =SUM(F16:F28) -> 247951
B30: 1. RESULTAT D'EXPLOITATION | F30: =F15-F29 -> 25952
C31: bénéfice attribué ou perte transférée
C32: perte supportée ou bénéfice transféré
B33: produits financiers | C33: produits financiers de participations | F33: 150
C34: produits des autres valeurs mob et créances actif im | F34: 498
C35: autres intérêts et produits assimilés
C36: reprises sur provisions et transferts de charges | G36: dont Tr. Ch.
C37: différences positives de change
C38: produits nets sur cessions de VMP
C39: total des produits financiers | F39: =SUM(F33:F38) -> 648
B40: charges financieres | C40: dot financières aux amortissements et provisions
C41: intérêts et charges assimilées | F41: 566
C42: différences négatives de change | F42: 91
C43: charges nettes sur cession de VMP
C44: total des charges financières | F44: =SUM(F40:F43) -> 657
B45: 2. RESULTAT FINANCIER | F45: =F39-F44 -> -9
B46: 3. RESULTAT COURANT AVANT IMPOTS | F46: =F30+F45 -> 25943
B47: produits exceptionnels | C47: produits exceptionnels sur opérations de gestion
C48: produits exceptionnels sur opérations en capital
C49: reprises sur provisions et transferts de charges | G49: dont Tr. Ch.
C50: Total des produits exceptionnels | F50: =SUM(F47:F49) -> 0
B51: charges exceptionnelles | C51: charges exceptionnelles sur opérations de gestion
C52: charges exceptionnelles sur opérations en capital
C53: dot. Exceptionnelles aux amortissements et prov.
C54: total des charges exceptionnelles | F54: =SUM(F51:F53) -> 0
B55: 3. RESULTAT EXCEPTIONNEL | F55: =F50-F54 -> 0
B56: Participation des salariés aux résultats de l'entreprise
B57: Impôts sur les bénéfices
B58: TOTAL DES PRODUITS | F58: =F15+F31+F39+F50 -> 274551
B59: TOTAL DES CHARGES | F59: =F29+F32+F44+F54+F56+F57 -> 248608
B60: 4. BENEFICE OU PERTE | F60: =F58-F59 -> 25943
E61: Dont 675
E62: Dont 775
E63: Dont 777 | F63: =F48-F62 -> 0
G65: Amt | H65: Fin.
E66: Sous-traitance
E67: Personnel extérieur
E68: Loyers de Crédit-Bail
E70: S.I.G. PCG N-1 | I70: S.I.G. CDB N-1 | L70: S.I.G. CNC N-1
E73: Marge comerciale | I73: Marge comerciale | L73: Marge comerciale
E74: Ventes de marchandises | F74: =F9 -> 268724 | I74: Ventes de marchandises | L74: Ventes de marchandises
E75: - Achats de marchandises | F75: =F18 -> 92663 | I75: - Achats de marchandises | L75: - Achats de marchandises
E76: - Variation de stock de marchandises | F76: =F19 -> -7279 | I76: - Variation de stock de marchandises | L76: - Variation de stock de marchandises
F77: =F74-F75-F76 -> 183340
E79: Production de l'exercice | I79: Production de l'exercice | L79: Production de l'exercice
E80: Ventes et prestations | I80: Ventes et prestations | L80: Ventes et prestations
E81: + Production stockée | I81: + Production stockée | L81: + Production stockée
E82: + Production immobilisée | F82: =F10 -> 2470 | I82: + Production immobilisée | L82: + Production immobilisée
F83: =F80+F81+F82 -> 2470
E85: Valeur ajoutée | I85: Valeur ajoutée | L85: Valeur ajoutée
E86: Marge commerciale | F86: =F77+F83 -> 185810 | I86: Marge commerciale | L86: Marge commerciale
E87: + Production de l'exercice | I87: + Production de l'exercice | L87: + Production de l'exercice
E88: - Achats de MP et appro | I88: + Subventions d'exploitation | L88: - Achats de MP et appro
E89: - Variation de stocks de MP et appro | I89: - Achats de MP et appro | L89: - Variation de stocks de MP et appro
E90: -Autres charges externes | F90: =F20 -> 45685 | I90: - Variation de stocks de MP et appro | L90: - Autres charges externes
F91: =F86+F87-F88-F89-F90 -> 140125 | I91: - Autres charges externes (sauf 612 et 621) | L91: + Loyers de crédit bail
I92: - Impôts et taxes | L92: + Personnel intérimaire
E93: Excédent brut d'exploitation | L93: + Frais de sous traitance
E94: Valeur ajoutée | F94: =F91 -> 140125
E95: + Subventions d'exploitation | F95: =F12 -> 2709 | I95: Excédent brut d'exploitation
E96: - Impôts et taxes | F96: =F21 -> 7371 | I96: Valeur ajoutée | L96: Excédent brut d'exploitation
E97: - Charges de personnel | F97: =F22+F23 -> 103387 | I97: - Charges de personnel | L97: Valeur ajoutée
F98: =F94+F95-F96-F97 -> 32076 | I98: - personnel intérimaire | L98: + Subventions d'exploitation
I99: - participation des salariés | L99: - Impôts et taxes
E100: Résultat d'exploitation | L100: - Charges de personnel
E101: E.B.E. | F101: =F98 -> 32076 | L101: - Personnel intérimaire
E102: + Autres produits | I102: Résultat d'exploitation | L102: - Frais de sous traitance
E103: + Reprises sur provisions d'exploitation | I103: E.B.E.
E104: + Transferts de charges | I104: + Autres produits
E105: - Dotations d'exploitation | F105: =F24 -> 6124 | I105: + Reprises sur provisions d'exploitation | L105: E.B.E. corrigé
E106: - Autres charges | I106: + Transferts de charges | L106: E.B.E.
F107: =F101+F102+F103+F104-F105-F106 -> 25952 | I107: - Dotations d'exploitation | L107: + Reprises sur provisions d'exploitation
I108: - Autres charges | L108: +Transferts de charges d'exploitation
E109: Résultat courant avant impôts | I109: - Part de capital en Crédit bail | L109: + Autres produits
E110: Résultat d'exploitation | F110: =F107 -> 25952 | L110: - Dotations aux provisions d'exploitation
E111: + Quote part sur opérations en commun | L111: - Autres charges
E112: + Produits financiers | F112: =F39 -> 648 | I112: Résultat courant avant impôts
E113: - Quote part sur opérations en commun | I113: Résultat d'exploitation
E114: - Charges financières | F114: =F44 -> 657 | I114: + Quote part sur opérations en commun | L114: Résultat d'exploitation
F115: =F110+F111+F112-F113-F114 -> 25943 | I115: + Produits financiers | L115: E.B.E. corrigé
I116: - Quote part sur opérations en commun | L116: - Dotations aux amortissements d'exploitation
E117: Résultat exceptionnel | I117: - Charges financières | L117: - Part en capital en Crédit bail
E118: Produits exceptionnels | I118: - Part financière en Crédit bail
E119: - Charges exceptionnelles
F120: =F118+F119 -> 0
I121: Résultat exceptionnel | L121: Résultat d'exploitation
E122: Résultat net comptable | I122: Produits exceptionnels | L122: + Quote part sur opérations en commun
E123: Résultat courant avant impôts | F123: =F115 -> 25943 | I123: - Charges exceptionnelles | L123: + Produits financiers
E124: + Résultat exceptionnel | F124: =F120 -> 0 | L124: - Quote part sur opérations en commun
E125: - Impôt sur les bénéfices | L125: - Charges financières sauf intérêts
E126: - Participation des salariés | I126: Résultat net comptable
F127: =F123+F124-F125-F126 -> 25943 | I127: Résultat courant avant impôts
I128: + Résultat exceptionnel | L128: Résultat courant
E129: + ou - values de cession | I129: - Impôt sur les bénéfices | L129: Résultat économique avant impôt
E130: Produits des cesions d'éléments d'actif | L130: - Charges d'intérêts
E131: - Valeur comptable des éléments d'actif cédés | I131: V.A. Globale | L131: - Part d'intérêts en Crédit bail
I132: Valeur ajoutée
I133: + Autres produits
I134: + Quote part | L134: Résultat exceptionnel
E135: CAF PCG N-1 | I135: + Produits financiers de participation | L135: Produits exceptionnels
I136: + Produits des autres VM | L136: - Charges exceptionnelles
E137: '= E.B.E. | F137: =F98 -> 32076 | I137: + Autres intérêts et pdts assimilés
E138: + Autres produits | F138: =F102 -> 0 | I138: + Différences positives de change
E139: + Produits financiers | F139: =F112 -> 648 | I139: + Produits nets sur cessions de VMP | L139: Résultat de l'exercice
E140: + Produits exceptionnels (sauf 775 et 777) | F140: =F118 -> 0 | I140: + Produits exceptionnels sur opératº en capital | L140: Résultat courant avant impôts
E141: + Transfert de charges d'exploitation | F141: =F104 -> 0 | I141: - Autres charges | L141: + Résultat exceptionnel
E142: - Autres charges | F142: =F106 -> 0 | I142: - Quote part | L142: - Impôt sur les bénéfices
E143: - Charges financières | F143: =F114 -> 657 | I143: - Différence négatives de change | L143: - Participation des salariés
E144: - Charges exceptionnelles (sauf 675) | F144: =F119 -> 0 | I144: - Charges nettes sur cessions de VMP
E145: - Participation des salariés | F145: =F126 -> 0 | I145: - Charges exceptionnelles / opératº en capital
E146: - Impôt net sur les bénéfices | F146: =F125 -> 0
F147: =F137+F138+F139+F140+F141-F142-F143-F144-F145-F146 -> 32067
I148: E.B. Global
E149: Vérification | I149: V.A. Globale
E150: Résultat net comptable | F150: =F127 -> 25943 | I150: - Charges de personnel
E151: + Valeur comptable des éléments d'actif cédés | F151: =F131 -> 0 | I151: - Personnel intérimaire
E152: + Dotations aux amortissements | F152: =F105 -> 6124 | I152: - Participation des salariés
E153: - Produits sur cession d'éléments d'actif | F153: =F130 -> 0
E154: - Quote part de subventº virées au résultat | F154: =F113 -> 0
E155: - Reprises sur amort et provisions | F155: =F103 -> 0
F156: =F150+F151+F152-F153-F154-F155 -> 32067 | I156: CAF CDB
I158: '= E.B. Global
I159: - Charges d'intérêts
I160: - Part d'intérêts en Crédit bail
I161: - Impôts sur les bénéfices

Sheet C.Résultat 2010 + SIG + CAF
B2: COMPTE DE RESULTAT 2010
B4: Ent : | D4: exercice
D5: France | E5: Exportation | F5: Total
B6: produits d'exploitation | C6: ventes march | F6: =E6+D6 -> 0 | M6: PCG | N6: CDB | O6: CNC
C7: X° biens vendue | D7: 262969 | F7: =E7+D7 -> 262969 | L7: Marge commerciale | M7: =F77 -> 0 | N7: =J77 -> 0 | O7: =M77 -> 0
C8: X°servicevendue | F8: =E8+D8 -> 0 | L8: Production de l'exercice | M8: =F83 -> 247679 | N8: =J83 -> 0 | O8: =M83 -> 0
C9: CA nets | D9: =SUM(D6:D8) -> 262969 | E9: =SUM(E6:E8) -> 0 | F9: 262969 | L9: Valeur ajoutée | M9: =F91 -> 217259 | N9: =J93 -> 0 | O9: =M94 -> 0
C10: production stockée | F10: -15290 | L10: Excédent brut d'exploitation | M10: =F98 -> 93304 | N10: =J100 -> 0 | O10: =M103 -> 0
C11: production immobilisée | L11: E.B.E. corrigé | O11: =M112 -> 0
C12: subventions d'exploitation | F12: 1242 | L12: Résultat d'exploitation | M12: =F107 -> 87855 | N12: =J110 -> 0 | O12: =M118 -> 0
C13: reprises sur amortissements et prov, transfert ch. | F13: 1130 | G13: dont Tr. Ch. | L13: Résultat économique avant impôt | O13: =M126 -> 0
C14: autres produits | L14: Résultat courant avant impôt | M14: =F115 -> 88036 | N14: =J119 -> 0 | O14: =M132 -> 0
C15: total des produits d'exploitation | F15: =SUM(F9:F14) -> 250051 | L15: Résultat exceptionnel | M15: =F120 -> 0 | N15: =J124 -> 0 | O15: =M137 -> 0
B16: charges d'exploitation | C16: achats de marchandises(y compris droits douane) | L16: Résultat de l'exercice | M16: =F127 -> 88036 | N16: =J129 -> 0 | O16: =M144 -> 0
C17: variation de stock (marchandises) | L17: + ou - values de cession | M17: =F132 -> 0
C18: achats de matières premièreset autres approv | F18: 72198
C19: variation de stock (mat 1ère et approv) | F19: 2044 | L19: CAF | M19: =F147 -> 94615 | N19: =F162 -> 0
C20: autres achats et charges externes | F20: 30420 | G20: =F16+F17+F18+F19+F20 -> 104662 | H20: achats et charges externes
C21: impôts, taxes et versements assimilés | F21: 6647
C22: salaires et traitements | F22: 74183
C23: charges sociales | F23: 44367 | G23: =F22+F23 -> 118550
C24: D Amort/ immobilisations | F24: 6579
C25: D. Prov / immobilisations
C26: dot aux provisions actif circulant
C27: dot aux provisions pour risques et charges
C28: autres charges
C29: Total des charges d'exploitation | F29: =SUM(F16:F28) -> 236438
B30: 1. RESULTAT D'EXPLOITATION | F30: =F15-F29 -> 13613
C31: bénéfice attribué ou perte transférée
C32: perte supportée ou bénéfice transféré
B33: produits financiers | C33: produits financiers de participations | F33: 1028
C34: produits des autres valeurs mob et créances actif im | F34: 1
C35: autres intérêts et produits assimilés
C36: reprises sur provisions et transferts de charges | G36: dont Tr. Ch.
C37: différences positives de change
C38: produits nets sur cessions de VMP
C39: total des produits financiers | F39: =SUM(F33:F38) -> 1029
B40: charges financieres | C40: dot financières aux amortissements et provisions
C41: intérêts et charges assimilées | F41: 452
C42: différences négatives de change | F42: 396
C43: charges nettes sur cession de VMP
C44: total des charges financières | F44: =SUM(F40:F43) -> 848
B45: 2. RESULTAT FINANCIER | F45: =F39-F44 -> 181
B46: 3. RESULTAT COURANT AVANT IMPOTS | F46: =F30+F45 -> 13794
B47: produits exceptionnels | C47: produits exceptionnels sur opérations de gestion
C48: produits exceptionnels sur opérations en capital
C49: reprises sur provisions et transferts de charges | G49: dont Tr. Ch.
C50: Total des produits exceptionnels | F50: =SUM(F47:F49) -> 0
B51: charges exceptionnelles | C51: charges exceptionnelles sur opérations de gestion
C52: charges exceptionnelles sur opérations en capital
C53: dot. Exceptionnelles aux amortissements et prov.
C54: total des charges exceptionnelles | F54: =SUM(F51:F53) -> 0
B55: 3. RESULTAT EXCEPTIONNEL | F55: =F50-F54 -> 0
B56: Participation des salariés aux résultats de l'entreprise
B57: Impôts sur les bénéfices
B58: TOTAL DES PRODUITS | F58: =F15+F31+F39+F50 -> 251080
B59: TOTAL DES CHARGES | F59: =F29+F32+F44+F54+F56+F57 -> 237286
B60: 4. BENEFICE OU PERTE | F60: =F58-F59 -> 13794
E61: Dont 675
E62: Dont 775
E63: Dont 777
G65: Amt | H65: Fin.
E66: Sous-traitance
E67: Personnel extérieur
E68: Loyers de Crédit-Bail
E71: S.I.G. PCG N | I71: S.I.G. CDB N | L71: S.I.G. CNC N
E73: Marge comerciale | I73: Marge comerciale | L73: Marge comerciale
E74: Ventes de marchandises | F74: =D6 -> 0 | I74: Ventes de marchandises | L74: Ventes de marchandises
E75: - Achats de marchandises | F75: =F16 -> 0 | I75: - Achats de marchandises | L75: - Achats de marchandises
E76: - Variation de stock de marchandises | F76: =F17 -> 0 | I76: - Variation de stock de marchandises | L76: - Variation de stock de marchandises
F77: =F74-F75-F76 -> 0
E79: Production de l'exercice | I79: Production de l'exercice | L79: Production de l'exercice
E80: Ventes et prestations | F80: =F7 -> 262969 | I80: Ventes et prestations | L80: Ventes et prestations
E81: + Production stockée | F81: =F10 -> -15290 | I81: + Production stockée | L81: + Production stockée
E82: + Production immobilisée | I82: + Production immobilisée | L82: + Production immobilisée
F83: =F80+F81 -> 247679
E85: Valeur ajoutée | I85: Valeur ajoutée | L85: Valeur ajoutée
E86: Marge commerciale | F86: =F77+F83 -> 247679 | I86: Marge commerciale | L86: Marge commerciale
E87: + Production de l'exercice | I87: + Production de l'exercice | L87: + Production de l'exercice
E88: - Achats de MP et appro | I88: + Subventions d'exploitation | L88: - Achats de MP et appro
E89: - Variation de stocks de MP et appro | I89: - Achats de MP et appro | L89: - Variation de stocks de MP et appro
E90: -Autres charges externes | F90: =F20 -> 30420 | I90: - Variation de stocks de MP et appro | L90: - Autres charges externes
F91: =F86+F87-F88-F89-F90 -> 217259 | I91: - Autres charges externes (sauf 612 et 621) | L91: + Loyers de crédit bail
I92: - Impôts et taxes | L92: + Personnel intérimaire
E93: Excédent brut d'exploitation | L93: + Frais de sous traitance
E94: Valeur ajoutée | F94: =F91 -> 217259
E95: + Subventions d'exploitation | F95: =F12 -> 1242 | I95: Excédent brut d'exploitation
E96: - Impôts et taxes | F96: =F21 -> 6647 | I96: Valeur ajoutée | L96: Excédent brut d'exploitation
E97: - Charges de personnel | F97: =F22+F23 -> 118550 | I97: - Charges de personnel | L97: Valeur ajoutée
F98: =F94+F95-F96-F97 -> 93304 | I98: - personnel intérimaire | L98: + Subventions d'exploitation
I99: - participation des salariés | L99: - Impôts et taxes
E100: Résultat d'exploitation | L100: - Charges de personnel
E101: E.B.E. | F101: =F98 -> 93304 | L101: - Personnel intérimaire
E102: + Autres produits | F102: =F14 -> 0 | I102: Résultat d'exploitation | L102: - Frais de sous traitance
E103: + Reprises sur provisions d'exploitation | F103: =F49 -> 0 | I103: E.B.E.
E104: + Transferts de charges | F104: =F13 -> 1130 | I104: + Autres produits
E105: - Dotations d'exploitation | F105: =F24 -> 6579 | I105: + Reprises sur provisions d'exploitation | L105: E.B.E. corrigé
E106: - Autres charges | F106: =F28 -> 0 | I106: + Transferts de charges | L106: E.B.E.
F107: =F101+F102+F103+F104-F105-F106 -> 87855 | I107: - Dotations d'exploitation | L107: + Reprises sur provisions d'exploitation
I108: - Autres charges | L108: +Transferts de charges d'exploitation
E109: Résultat courant avant impôts | I109: - Part de capital en Crédit bail | L109: + Autres produits
E110: Résultat d'exploitation | F110: =F107 -> 87855 | L110: - Dotations aux provisions d'exploitation
E111: + Quote part sur opérations en commun | L111: - Autres charges
E112: + Produits financiers | F112: =F39 -> 1029 | I112: Résultat courant avant impôts
E113: - Quote part sur opérations en commun | I113: Résultat d'exploitation
E114: - Charges financières | F114: =F41+F42 -> 848 | I114: + Quote part sur opérations en commun | L114: Résultat d'exploitation
F115: =F110+F112-F113-F114 -> 88036 | I115: + Produits financiers | L115: E.B.E. corrigé
I116: - Quote part sur opérations en commun | L116: - Dotations aux amortissements d'exploitation
E117: Résultat exceptionnel | I117: - Charges financières | L117: - Part en capital en Crédit bail
E118: Produits exceptionnels | F118: 0 | I118: - Part financière en Crédit bail
E119: - Charges exceptionnelles | F119: 0
F120: =F118+F119 -> 0
I121: Résultat exceptionnel | L121: Résultat d'exploitation
E122: Résultat net comptable | I122: Produits exceptionnels | L122: + Quote part sur opérations en commun
E123: Résultat courant avant impôts | F123: =F115 -> 88036 | I123: - Charges exceptionnelles | L123: + Produits financiers
E124: + Résultat exceptionnel | L124: - Quote part sur opérations en commun
E125: - Impôt sur les bénéfices | L125: - Charges financières sauf intérêts
E126: - Participation des salariés | I126: Résultat net comptable
F127: =F123+F124-F125-F126 -> 88036 | I127: Résultat courant avant impôts
I128: + Résultat exceptionnel | L128: Résultat courant
E129: + ou - values de cession | I129: - Impôt sur les bénéfices | L129: Résultat économique avant impôt
E130: Produits des cesions d'éléments d'actif | L130: - Charges d'intérêts
E131: - Valeur comptable des éléments d'actif cédés | I131: V.A. Globale | L131: - Part d'intérêts en Crédit bail
I132: Valeur ajoutée
I133: + Autres produits
I134: + Quote part | L134: Résultat exceptionnel
E135: CAF PCG N | I135: + Produits financiers de participation | L135: Produits exceptionnels
I136: + Produits des autres VM | L136: - Charges exceptionnelles
E137: '= E.B.E. | F137: =F101 -> 93304 | I137: + Autres intérêts et pdts assimilés
E138: + Autres produits | F138: =F102 -> 0 | I138: + Différences positives de change
E139: + Produits financiers | F139: =F112 -> 1029 | I139: + Produits nets sur cessions de VMP | L139: Résultat de l'exercice
E140: + Produits exceptionnels (sauf 775 et 777) | F140: =F118 -> 0 | I140: + Produits exceptionnels sur opératº en capital | L140: Résultat courant avant impôts
E141: + Transfert de charges d'exploitation | F141: =F104 -> 1130 | I141: - Autres charges | L141: + Résultat exceptionnel
E142: - Autres charges | F142: =F106 -> 0 | I142: - Quote part | L142: - Impôt sur les bénéfices
E143: - Charges financières | F143: =F114 -> 848 | I143: - Différence négatives de change | L143: - Participation des salariés
E144: - Charges exceptionnelles (sauf 675) | F144: =F119 -> 0 | I144: - Charges nettes sur cessions de VMP
E145: - Participation des salariés | F145: =F126 -> 0 | I145: - Charges exceptionnelles / opératº en capital
E146: - Impôt net sur les bénéfices | F146: =F125 -> 0
F147: =F137+F138+F139+F140+F141-F142-F143-F144-F145-F146 -> 94615
I148: E.B. Global
E149: Vérification | I149: V.A. Globale
E150: Résultat net comptable | F150: =F127 -> 88036 | I150: - Charges de personnel
E151: + Valeur comptable des éléments d'actif cédés | F151: =F131 -> 0 | I151: - Personnel intérimaire
E152: + Dotations aux amortissements | F152: =F105 -> 6579 | I152: - Participation des salariés
E153: - Produits sur cession d'éléments d'actif | F153: =F130 -> 0
E154: - Quote part de subventº virées au résultat | F154: =F113 -> 0
E155: - Reprises sur amort et provisions | F155: =F103 -> 0
F156: =F150+F151+F152-F153-F155-F154 -> 94615 | I156: CAF CDB
I158: '= E.B. Global | J158: =J153 -> 0
I159: - Charges d'intérêts | J159: =F41 -> 452
I160: - Part d'intérêts en Crédit bail | J160: =H68 -> 0
I161: - Impôts sur les bénéfices | J161: =F57 -> 0
J162: =J158-J159-J160-J161 -> -452

Sheet BILAN 2008
A1: BILAN ACTIF | I1: N-2 | J1: BILAN PASSIF
A2: Désignation de l'entreprise | G2: Durée de l'exercice exprimée en nombre de mois
A3: Adresse de l'entreprise | H3: Durée de l'exercuice précedent
A4: Numero SIRET | E4: Code APE
A5: (ne pas reporter les centimes) | D5: Exercice N clos le :
D6: Brut | F6: Amortissements provisions | H6: Net | I6: CAPITAUX PROPRES | J6: Capital social ou individuel | K6: DA | L6: 5000
A7: Capital souscrit non appelé | D7: AA | H7: =$E$7 -> 0 | J7: Primes d'émission de fusion, d'apports,… | K7: DB
A8: ACTIF IMMOBILISE | B8: IMMOBILISATIONS INCORPORELLES | C8: Frais d'établissement | D8: AB | F8: AC | H8: =E8-G8 -> 0 | J8: Ecarts de réévaluation | K8: DC
C9: Frais de recherche et de développement | D9: AD | F9: AE | H9: =E9-G9 -> 0 | J9: Réserve légale | K9: DD
C10: Concession, brevet droit similaires | D10: AF | F10: AG | H10: 0 | J10: Réserves statutaires ou contractuelles | K10: DE
C11: Fonds commercial | D11: AH | F11: AI | H11: 0 | J11: Réserves réglementées | K11: DF
C12: Autres immobilisations incorporelles | D12: AJ | E12: 495.83 | F12: AK | H12: 495.83 | J12: Autres réserves | K12: DG
C13: Avances et acomptes sur immobilisations incorporelles | D13: AL | F13: AM | H13: 0 | J13: report à nouveau | K13: DH
B14: IMMOBILISATIONS CORPORELLES | C14: Terrains | D14: AN | F14: AO | H14: 0 | J14: RESULTAT DE L'EXERCICE (bénéfice ou perte) | K14: DI | L14: 28088.93
C15: Constructions | D15: AP | F15: AQ | H15: 0 | J15: Subvention d'investissement | K15: DJ
C16: Installations techniques, matériel et outillage industriels | D16: AR | F16: AS | H16: 0 | J16: Provisions réglementées | K16: DK
C17: Autres immobilisations corporelles | D17: AT | E17: 25684.91 | F17: AU | H17: 25684.91 | J17: TOTAL (I) | K17: DL | L17: =SUM(L6:L16) -> 33088.93
C18: Immobilisations en cours | D18: AV | F18: AW | H18: =E18-G18 -> 0 | I18: Autres fonds propres | J18: Produits des émissions de titres participatif | K18: DM
C19: Avances et acomptes | D19: AX | F19: AY | H19: =E19-G19 -> 0 | J19: Avances conditionnées | K19: DN
B20: IMMOBILISATIONS FINANCIERES | C20: Participations évaluées selon la méthode de mise en équivalence | D20: CS | F20: CT | H20: 0 | J20: TOTAL (II) | K20: DO | L20: =L19+L18 -> 0
C21: Autres participations | D21: CU | F21: CV | H21: 0 | I21: Provisions pour risques et charges | J21: Provisions pour risques | K21: DP
C22: Créance rattachées à des participations | D22: BB | F22: BC | H22: 0 | J22: Provisions pour charges | K22: DQ
C23: Autres titres immobilisés | D23: BD | F23: BE | H23: 0 | J23: TOTAL (III) | K23: DR | L23: =L22+L21 -> 0
C24: Prêts | D24: BF | F24: BG | H24: 0 | I24: DETTES | J24: Emprunt obligataires convertibles | K24: DS
C25: Autres immobilisations financières | D25: BH | E25: 990.82 | F25: BI | H25: 990.82 | J25: Autres emprunt obligataires | K25: DT
A26: TOTAL | D26: BJ | E26: =SUM(E7:E25) -> 27171.56 | F26: BK | G26: =SUM(G7:G25) -> 0 | H26: 27171.56 | J26: Emprunt et dettes auprès des établissements de crédit(1) | K26: DU | L26: 15204.75
A27: ACTIF CIRCULANT | B27: STOCKS | C27: Matières premières, appovisionnements | D27: BL | E27: 12820 | F27: BM | H27: =E27-G27 -> 12820
C28: En cours de production de biens | D28: BN | F28: BO | H28: =E28-G28 -> 0 | J28: Emprunt et dettes financières diverses | K28: DV
C29: En cours de productions de services | D29: BP | F29: BQ | H29: 0 | J29: Avances et acomptes reçus sur commande en cours | K29: DW
C30: Produits intermédiaires et finis | D30: BR | F30: BS | H30: 0 | J30: Dettes fournisseurs et comptes rattachés | K30: DX | L30: 16961.47
C31: Marchandises | D31: BT | F31: BU | H31: 0 | J31: Dettes fiscales et sociales | K31: DY | L31: 37307.93
C32: Avances et acomptes versés sur commandes | D32: BV | F32: BW | H32: 0 | J32: Dettes sur immobilisations et comptes rattachés | K32: DZ
B33: CREANCES | C33: Clients et comptes ratachés | D33: BX | E33: 15381.73 | F33: BY | H33: 15381.73 | J33: Autres dettes | K33: EA
C34: Autres créances | D34: BZ | E34: 2345 | F34: CA | H34: 2345 | J34: Produits constatées d'avance | K34: EB
C35: Capital souscrit et appellé, non versé | D35: CB | F35: CC | H35: 0 | J35: TOTAL (IV) | K35: EC | L35: =SUM(L18:L34) -> 69474.15
B36: DIVERS | C36: Valeurs mobilières de placement (dont actions propres ………..) | D36: CD | F36: CE | H36: 0 | J36: Ecarts de conversions passif (V) | K36: ED
C37: Disponibilités | D37: CF | E37: 44452.44 | F37: CG | H37: 44452.44 | J37: TOTAL GENERAL (I à V) | K37: EE | L37: =L35+L17+L20+L23 -> 102563.08
A38: COMPTE DE REGULARISATION | C38: Charges constatées d'avance | D38: CH | E38: 392.35 | F38: CI | H38: 392.35
C39: TOTAL | D39: CJ | E39: =SUM(E27:E38) -> 75391.52 | F39: CK | G39: =SUM(G28:G38) -> 0 | H39: 75391.52
C40: Charges à répartir sur plusieurs exercices | D40: CL | H40: =$E$40 -> 0
C41: Primes de remboursement des obligations | D41: CM | J41: (1)Dont concours bancaires courants
C42: Ecarts de conversion actif | D42: CN
C43: TOTAL GENERAL | D43: CO | E43: =E42+E41+E40+E39+E26 -> 102563.08 | F43: IA | G43: =G42+G41+G40+G39+G26 -> 0 | H43: =H42+H41+H40+H39+H26 -> 102563.08
J44: Capitaux permanents | K44: =(L17+L26)-K41 -> 48293.68
J45: Dettes nettes | K45: =L26+L28 -> 15204.75
C46: Réalisables & disponibles | E46: =E33+E34+E37 -> 62179.17

Sheet BILAN 2009
A1: BILAN ACTIF | I1: N-2 | J1: BILAN PASSIF
A2: Désignation de l'entreprise | G2: Durée de l'exercice exprimée en nombre de mois
A3: Adresse de l'entreprise | H3: Durée de l'exercuice précedent
A4: Numero SIRET | E4: Code APE
A5: (ne pas reporter les centimes) | D5: Exercice N clos le :
D6: Brut | F6: Amortissements provisions | H6: Net | I6: CAPITAUX PROPRES | J6: Capital social ou individuel | K6: DA | L6: 5000
A7: Capital souscrit non appelé | D7: AA | H7: =$E$7 -> 0 | J7: Primes d'émission de fusion, d'apports,… | K7: DB
A8: ACTIF IMMOBILISE | B8: IMMOBILISATIONS INCORPORELLES | C8: Frais d'établissement | D8: AB | F8: AC | H8: =E8-G8 -> 0 | J8: Ecarts de réévaluation | K8: DC
C9: Frais de recherche et de développement | D9: AD | F9: AE | H9: =E9-G9 -> 0 | J9: Réserve légale | K9: DD | L9: 500
C10: Concession, brevet droit similaires | D10: AF | F10: AG | H10: 0 | J10: Réserves statutaires ou contractuelles | K10: DE
C11: Fonds commercial | D11: AH | F11: AI | H11: 0 | J11: Réserves réglementées | K11: DF
C12: Autres immobilisations incorporelles | D12: AJ | E12: 700 | F12: AK | G12: 554.17 | H12: 145.83 | J12: Autres réserves | K12: DG
C13: Avances et acomptes sur immobilisations incorporelles | D13: AL | F13: AM | H13: 0 | J13: report à nouveau | K13: DH
B14: IMMOBILISATIONS CORPORELLES | C14: Terrains | D14: AN | F14: AO | H14: 0 | J14: RESULTAT DE L'EXERCICE (bénéfice ou perte) | K14: DI | L14: ='C.Résultat 2009 + SIG + CAF'!F60 -> 25943
C15: Constructions | D15: AP | F15: AQ | H15: 0 | J15: Subvention d'investissement | K15: DJ
C16: Installations techniques, matériel et outillage industriels | D16: AR | F16: AS | H16: 0 | J16: Provisions réglementées | K16: DK
C17: Autres immobilisations corporelles | D17: AT | E17: 28517.53 | F17: AU | G17: 8606.55 | H17: 19910.98 | J17: TOTAL (I) | K17: DL | L17: =SUM(L6:L16) -> 31443
C18: Immobilisations en cours | D18: AV | F18: AW | H18: =E18-G18 -> 0 | I18: Autres fonds propres | J18: Produits des émissions de titres participatif | K18: DM
C19: Avances et acomptes | D19: AX | F19: AY | H19: =E19-G19 -> 0 | J19: Avances conditionnées | K19: DN
B20: IMMOBILISATIONS FINANCIERES | C20: Participations évaluées selon la méthode de mise en équivalence | D20: CS | F20: CT | H20: 0 | J20: TOTAL (II) | K20: DO | L20: =L19+L18 -> 0
C21: Autres participations | D21: CU | F21: CV | H21: 0 | I21: Provisions pour risques et charges | J21: Provisions pour risques | K21: DP
C22: Créance rattachées à des participations | D22: BB | F22: BC | H22: 0 | J22: Provisions pour charges | K22: DQ
C23: Autres titres immobilisés | D23: BD | F23: BE | H23: 0 | J23: TOTAL (III) | K23: DR | L23: =L22+L21 -> 0
C24: Prêts | D24: BF | F24: BG | H24: 0 | I24: DETTES | J24: Emprunt obligataires convertibles | K24: DS
C25: Autres immobilisations financières | D25: BH | E25: 990.82 | F25: BI | H25: 990.82 | J25: Autres emprunt obligataires | K25: DT
A26: TOTAL | D26: BJ | E26: =SUM(E7:E25) -> 30208.35 | F26: BK | G26: =SUM(G7:G25) -> 9160.72 | H26: 21047.63 | J26: Emprunt et dettes auprès des établissements de crédit(1) | K26: DU | L26: 12072.12
A27: ACTIF CIRCULANT | B27: STOCKS | C27: Matières premières, appovisionnements | D27: BL | E27: 22568.95 | F27: BM | H27: =E27-G27 -> 22568.95
C28: En cours de production de biens | D28: BN | F28: BO | H28: =E28-G28 -> 0 | J28: Emprunt et dettes financières diverses | K28: DV
C29: En cours de productions de services | D29: BP | F29: BQ | H29: 0 | J29: Avances et acomptes reçus sur commande en cours | K29: DW
C30: Produits intermédiaires et finis | D30: BR | F30: BS | H30: 0 | J30: Dettes fournisseurs et comptes rattachés | K30: DX | L30: 8864.23
C31: Marchandises | D31: BT | F31: BU | H31: 0 | J31: Dettes fiscales et sociales | K31: DY | L31: 71732.86
C32: Avances et acomptes versés sur commandes | D32: BV | E32: 23248.52 | F32: BW | H32: 23248.52 | J32: Dettes sur immobilisations et comptes rattachés | K32: DZ
B33: CREANCES | C33: Clients et comptes ratachés | D33: BX | F33: BY | H33: 0 | J33: Autres dettes | K33: EA
C34: Autres créances | D34: BZ | E34: 1431.38 | F34: CA | H34: 1431.38 | J34: Produits constatées d'avance | K34: EB
C35: Capital souscrit et appellé, non versé | D35: CB | F35: CC | H35: 0 | J35: TOTAL (IV) | K35: EC | L35: =SUM(L18:L34) -> 92669.21
B36: DIVERS | C36: Valeurs mobilières de placement (dont actions propres ………..) | D36: CD | E36: 30000 | F36: CE | H36: 30000 | J36: Ecarts de conversions passif (V) | K36: ED
C37: Disponibilités | D37: CF | E37: 23815.12 | F37: CG | H37: 23815.12 | J37: TOTAL GENERAL (I à V) | K37: EE | L37: =L35+L17+L20+L23 -> 124112.21
A38: COMPTE DE REGULARISATION | C38: Charges constatées d'avance | D38: CH | E38: 2001.4 | F38: CI | H38: 2001.4
C39: TOTAL | D39: CJ | E39: =SUM(E27:E38) -> 103065.37 | F39: CK | G39: =SUM(G28:G38) -> 0 | H39: 103065.37
C40: Charges à répartir sur plusieurs exercices | D40: CL | H40: =$E$40 -> 0
C41: Primes de remboursement des obligations | D41: CM | J41: (1)Dont concours bancaires courants
C42: Ecarts de conversion actif | D42: CN
C43: TOTAL GENERAL | D43: CO | E43: =E42+E41+E40+E39+E26 -> 133273.72 | F43: IA | G43: =G42+G41+G40+G39+G26 -> 9160.72 | H43: =H42+H41+H40+H39+H26 -> 124113
J44: Capitaux permanents | K44: =(L17+L26)-K41 -> 43515.12
J45: Dettes nettes | K45: =L26+L28 -> 12072.12
C46: Réalisables & disponibles | E46: =E33+E34+E37 -> 25246.5

Sheet BILAN 2010
A1: 1. BILAN - ACTIF | I1: N | J1: BILAN PASSIF
A2: Désignation de l'entreprise | G2: Durée de l'exercice exprimée en nombre de mois
A3: Adresse de l'entreprise | H3: Durée de l'exercuice précedent
A4: Numero SIRET | E4: Code APE
A5: (ne pas reporter les centimes) | D5: Exercice N clos le :
D6: Brut | F6: Amortissements provisions | H6: Net | I6: CAPITAUX PROPRES | J6: Capital social ou individuel | K6: DA | L6: 5000
A7: Capital souscrit non appelé | D7: AA | H7: =$E$7 -> 0 | J7: Primes d'émission de fusion, d'apports,… | K7: DB
A8: ACTIF IMMOBILISE | B8: IMMOBILISATIONS INCORPORELLES | C8: Frais d'établissement | D8: AB | F8: AC | H8: =E8-G8 -> 0 | J8: Ecarts de réévaluation | K8: DC
C9: Frais de recherche et de développement | D9: AD | F9: AE | H9: =E9-G9 -> 0 | J9: COMPTE EXPLOITANT | K9: DD
C10: Concession, brevet droit similaires | D10: AF | F10: AG | H10: 0 | J10: Réserves statutaires ou contractuelles | K10: DE
C11: Fonds commercial | D11: AH | F11: AI | H11: 0 | J11: Réserves réglementées | K11: DF | L11: 500
C12: Autres immobilisations incorporelles | D12: AJ | E12: 1380 | F12: AK | G12: 805.78 | H12: 574.22 | J12: Autres réserves | K12: DG
C13: Avances et acomptes sur immobilisations incorporelles | D13: AL | F13: AM | H13: 0 | J13: report à nouveau | K13: DH
B14: IMMOBILISATIONS CORPORELLES | C14: Terrains | D14: AN | F14: AO | H14: 0 | J14: RESULTAT DE L'EXERCICE (bénéfice ou perte) | K14: DI | L14: ='C.Résultat 2010 + SIG + CAF'!$F$60 -> 13794
C15: Constructions | D15: AP | F15: AQ | H15: 0 | J15: Subvention d'investissement | K15: DJ
C16: Installations techniques, matériel et outillage industriels | D16: AR | F16: AS | H16: 0 | J16: Provisions réglementées | K16: DK
C17: Autres immobilisations corporelles | D17: AT | E17: 31949.72 | F17: AU | G17: 14933.45 | H17: 17016.27 | J17: TOTAL (I) | K17: DL | L17: =SUM(L6:L16) -> 19294
C18: Immobilisations en cours | D18: AV | F18: AW | H18: =E18-G18 -> 0 | I18: Autres fonds propres | J18: Produits des émissions de titres participatif | K18: DM
C19: Avances et acomptes | D19: AX | F19: AY | H19: =E19-G19 -> 0 | J19: Avances conditionnées | K19: DN
B20: IMMOBILISATIONS FINANCIERES | C20: Participations évaluées selon la méthode de mise en équivalence | D20: CS | F20: CT | H20: 0 | J20: TOTAL (II) | K20: DO | L20: =L19+L18 -> 0
C21: Autres participations | D21: CU | F21: CV | H21: 0 | I21: Provisions pour risques et charges | J21: Provisions pour risques | K21: DP
C22: Créance rattachées à des participations | D22: BB | F22: BC | H22: 0 | J22: Provisions pour charges | K22: DQ
C23: Autres titres immobilisés | D23: BD | F23: BE | H23: 0 | J23: TOTAL (III) | K23: DR | L23: =L22+L21 -> 0
C24: Prêts | D24: BF | F24: BG | H24: 0 | I24: DETTES | J24: Emprunt obligataires convertibles | K24: DS
C25: Autres immobilisations financières | D25: BH | E25: 990.82 | F25: BI | H25: 990.82 | J25: Autres emprunt obligataires | K25: DT
A26: TOTAL | D26: BJ | E26: =SUM(E7:E25) -> 34320.54 | F26: BK | G26: =SUM(G7:G25) -> 15739.23 | H26: 18581.31 | J26: Emprunt et dettes auprès des établissements de crédit (1) | K26: DU | L26: 8803.81
A27: ACTIF CIRCULANT | B27: STOCKS | C27: Matières premières, appovisionnements | D27: BL | E27: 5235 | F27: BM | H27: =E27-G27 -> 5235
C28: En cours de production de biens | D28: BN | F28: BO | H28: =E28-G28 -> 0 | J28: Emprunt et dettes financières diverses | K28: DV
C29: En cours de productions de services | D29: BP | F29: BQ | H29: 0 | J29: Avances et acomptes reçus sur commande en cours | K29: DW
C30: Produits intermédiaires et finis | D30: BR | F30: BS | H30: 0 | J30: Dettes fournisseurs et comptes rattachés | K30: DX | L30: 8839.76
C31: Marchandises | D31: BT | F31: BU | H31: 0 | J31: Dettes fiscales et sociales | K31: DY | L31: 61886
C32: Avances et acomptes versés sur commandes | D32: BV | F32: BW | H32: 0 | J32: Dettes sur immobilisations et comptes rattachés | K32: DZ
B33: CREANCES | C33: Clients et comptes ratachés | D33: BX | E33: 6597.08 | F33: BY | H33: 6597.08 | J33: Autres dettes | K33: EA
C34: Autres créances | D34: BZ | E34: 56.64 | F34: CA | H34: 56.64 | J34: Produits constatées d'avance | K34: EB
C35: Capital souscrit et appellé, non versé | D35: CB | F35: CC | H35: 0 | J35: TOTAL (IV) | K35: EC | L35: =SUM(L24:L34) -> 79529.57
B36: DIVERS | C36: Valeurs mobilières de placement (dont actions propres ………..) | D36: CD | E36: 20000 | F36: CE | H36: 20000 | J36: Ecarts de conversions passif (V) | K36: ED
C37: Disponibilités | D37: CF | E37: 44403.22 | F37: CG | H37: 44403.22 | J37: TOTAL GENERAL (I à V) | K37: EE | L37: =L35+L23+L20+L17 -> 98823.57
A38: COMPTE DE REGULARISATION | C38: Charges constatées d'avance | D38: CH | E38: 3952 | F38: CI | H38: 3952
C39: TOTAL | D39: CJ | E39: =SUM(E27:E38) -> 80243.94 | F39: CK | G39: =SUM(G28:G38) -> 0 | H39: 80243.94
C40: Charges à répartir sur plusieurs exercices | D40: CL | H40: =$E$40 -> 0
C41: Primes de remboursement des obligations | D41: CM | J41: (1)Dont concours bancaires courants
C42: Ecarts de conversion actif | D42: CN
C43: TOTAL GENERAL | D43: CO | E43: =E42+E41+E40+E39+E26 -> 114564.48 | F43: IA | G43: =G42+G41+G40+G39+G26 -> 15739.23 | H43: =H42+H41+H40+H39+H26 -> 98825.25
J45: Capitaux permanents | K45: =(L17+L26)-K41 -> 28097.81
J46: Dettes nettes | K46: =L26+L28 -> 8803.81
C50: Réalisables et disponibles | E50: =E33+E34+E37 -> 51056.94

Sheet variation SIG & CAF
C4: 2008 | D4: % | E4: 2009 | F4: % | G4: variation | H4: 2010 | I4: % | J4: variation
B5: C.A | N5: N | O5: N-1 | P5: N-2
B6: M. commerciale | L6: C.A | M6: =#REF! ->  | N6: =$H$5 -> 0 | O6: =E5 -> 0 | P6: =C5 -> 0
B7: P. exercice | L7: M. commerciale | M7: =#REF! ->  | N7: =H6 -> 0 | O7: 0 | P7: 0
B8: achats | M8: =#REF! -> 
B9: ch.externes | M9: =#REF! -> 
B10: V.ajoutée | L10: P. exercice | M10: =#REF! ->  | N10: =H7 -> 0 | O10: =E7 -> 0 | P10: =C7 -> 0
B11: ch.personnel | M11: =#REF! -> 
B12: E.B.E | L12: V.ajoutée | M12: =#REF! ->  | N12: =H10 -> 0 | O12: =E10 -> 0 | P12: =C10 -> 0
B13: R. exploitation | L13: E.B.E | M13: =#REF! ->  | N13: 0 | O13: 0 | P13: 0
B14: R.courant av Impôts | L14: R. exploitation | M14: =#REF! ->  | N14: 0 | O14: 0 | P14: 0
B15: R.exceptionnel | L15: R.courant av Impôts | M15: =#REF! ->  | N15: 0 | O15: 0 | P15: 0
B16: R. exercice | L16: R.exceptionnel | M16: =#REF! ->  | N16: 0 | O16: 0 | P16: 0
L17: R. exercice | M17: =#REF! ->  | N17: 0 | O17: 0 | P17: 0
C19: N-2 | D19: % | E19: N-1 | F19: % | G19: variation | H19: N | I19: % | J19: variation
B20: CAF | C20: ='C.Résultat 2008 + SIG + CAF'!$F$156 -> 0
N21: N | O21: N-1 | P21: N-2
L22: CAF | N22: =$H$20 -> 0 | O22: =$E$20 -> 0 | P22: =$C$20 -> 0
K60: N-2 | L60: N-1 | N60: N
K61: =C5 -> 0 | L61: =E5 -> 0 | N61: =H5 -> 0
K62: =C8 -> 0 | L62: =E8 -> 0 | N62: =H8 -> 0
K63: =C9 -> 0 | L63: =E9 -> 0 | N63: =H9 -> 0
K64: =C11 -> 0 | L64: =E11 -> 0 | N64: =H11 -> 0
K65: =C16 -> 0 | L65: =E16 -> 0 | N65: =H16 -> 0

Sheet clients et fournisseurs
B1: DELAI CLIENTS
D3: Clients et comptes rattachés | H3: TVA
C4: DELAI CLIENTS : | F4: X 360
D5: CA TTC
J8: Nbr / jours | P8: delai clients | Q8: delai fournisseurs
O9: N | P9: =$J$10 ->  | Q9: =$J$36 -> 
C10: N | F10: = | I10: X 360 = | J10: =(G9/G11)*360 ->  | O10: N-1 | P10: =$J$15 ->  | Q10: =$J$41 -> 
O11: N-2 | P11: =$J$20 ->  | Q11: =$J$46 -> 
C15: N-1 | F15: = | I15: X 360 = | J15: =G14/G16*360 -> 
C20: N-2 | F20: = | I20: X 360 = | J20: =G19/G21*360 -> 
B24: DELAI FOURNISSEURS
E26: Fournisseurs et comptes rattachés | I26: TVA
C27: DELAI FOURNISSEURS : | G27: X 360
E28: Achats et charges externesTTC
J34: Nbr / jours
C36: N | F36: = | I36: X 360 = | J36: =(G35/G37)*360 -> 
C41: N-1 | F41: = | I41: X 360 = | J41: =(G40/G42)*360 -> 
C46: N-2 | F46: = | I46: X 360 = | J46: =(G45/G47)*360 -> 
H51: ECARTS CLIENTS & FOURNISSEUS
H53: N | J53: jours
H54: N-1 | J54: jours
H55: N-2 | J55: jours

Sheet B.Fonctionnel
B2: BILAN FONCTIONNEL N
B3: EMPLOIS STABLES | C3: RESSOURCES STABLES
E4: FRNG | F4: =C5-B5 -> 0
E5: BFR | F5: =B8-C9 -> 0
E6: TRESORERIE | F6: =F4-F5 -> 0
B7: EMPLOIS STABLES | C7: DETTES NON-FINANCIERES
B11: TRESORERIE POSITIVE | C11: TRESORERIE NEGATIVE
B17: BILAN FONCTIONNEL N-1
B18: EMPLOIS STABLES | C18: RESSOURCES STABLES
E19: FRNG | F19: =C20-B20 -> 0 | J19: N | K19: N-1 | L19: N-2
E20: BRR | F20: =B24-C24 -> 0 | I20: FRNG | J20: =$F$4 -> 0 | K20: =$F$19 -> 0 | L20: =$F$34 -> 0
E21: TRESORERIE | F21: =F19-F20 -> 0 | I21: BFR | J21: =$F$5 -> 0 | K21: =$F$20 -> 0 | L21: =$F$35 -> 0
I22: TRESORERIE | J22: =$F$6 -> 0 | K22: =$F$21 -> 0 | L22: =$F$36 -> 0
B23: ACTIFS CIRCULANTS | C23: DETTES NON-FINANCIERES
B26: TRESORERIE POSITIVE | C26: TRESORERIE NEGATIVE
B32: BILAN FONCTIONNEL N-2
B33: EMPLOIS STABLES | C33: RESSOURCES STABLES
E34: FRNG | F34: =C35-B35 -> 0
E35: BRR | F35: =B39-C39 -> 0
E36: TRESORERIE | F36: =F34-F35 -> 0
B38: ACTIFS CIRCULANTS | C38: DETTES NON-FINANCIERES
B41: TRESORERIE POSITIVE | C41: TRESORERIE NEGATIVE

Sheet ratios
A4: RATIOS DE GESTION
C5: N | D5: N-1 | E5: N-2
A6: EBE/ C. d'AFFAIRES
C7: N | D7: N-1 | E7: N-2
A8: R exploitat° / C. d'AFFAIRES
C9: N | D9: N-1 | E9: N-2
A10: R net / C. d'AFFAIRES
A13: RATIOS FINANCIERS
C14: N | D14: N-1 | E14: N-2
A15: Capitaux propres / capitaux permanents
C16: N | D16: N-1 | E16: N-2
A17: Capitaux propres / passif total
C18: N | D18: N-1 | E18: N-2
A19: Dettes nettes / capitaux propres
C20: N | D20: N-1 | E20: N-2
A21: Capitaux permanents / immobilisations nettes
A24: RATIOS D'EXPLOITATION
C25: N | D25: N-1 | E25: N-2
A26: (Actifs circulalnts - stocks) / dettes à court terme
A28: RATIOS DE STRUCTURE FINANCIERE
C29: N | D29: N-1 | E29: N-2
A30: Dettes à long terme / imobilisations
G98: N | H98: N-1 | I98: N-2
E101: Ch personnelles | G101: ='C.Résultat 2010 + SIG + CAF'!$F$97 -> 118550 | H101: ='C.Résultat 2009 + SIG + CAF'!$F$97 -> 103387
E102: C.A | G102: ='C.Résultat 2010 + SIG + CAF'!$F$15 -> 250051 | H102: ='C.Résultat 2009 + SIG + CAF'!$F$15 -> 273903
E103: C PERSO /CA | G103: =G101/G102 -> 0.4741032829 | H103: =H101/H102 -> 0.3774584433

Sheet S.R
C3: SEUIL DE RENTABILITE SI LES CHARGES VARIABLES SONT UNIQUEMENT LES ACHATS (marchandises et mat 1)
D5: N-2 | G5: N-1 | J5: N
D7: CA | G7: CA | J7: CA
D8: CV | G8: CV | J8: CV
D9: MCV | G9: MCV | J9: MCV
D10: CF | G10: CF | J10: CF
D11: R | G11: R | J11: R
D16: SR | G16: SR | J16: SR
C19: taux de risque | G19: taux de risque | J19: taux de risque

Sheet SCORE CONAN & HOLDER
A1: Application du score de Conan et Holder N
E2: Ratios | G2: Coefficients | H2: Total
A3: Excédent Brut d'Exploitation | B3: ='variation SIG & CAF'!$H$12 -> 0 | C3: Total des dettes | D3: ='BILAN 2010'!$L$35 -> 79529.57 | E3: R1 = | F3: =B3/D3 -> 0 | G3: 0.24 | H3: =F3*G3 -> 0
A4: Capitaux permanents | B4: ='BILAN 2010'!$K$45 -> 28097.81 | C4: Total de l'actif | D4: ='BILAN 2010'!$H$43 -> 98825.25 | E4: R2 = | F4: =B4/D4 -> 0.2843181272 | G4: 0.22 | H4: =F4*G4 -> 0.06254998798 | K4: N | L4: N-1 | M4: N-2
A5: Réalisable et disponible | B5: ='BILAN 2010'!$E$50 -> 51056.94 | E5: R3 = | F5: =B5/D4 -> 0.5166386121 | G5: 0.16 | H5: =F5*G5 -> 0.08266217794 | J5: R1 = | K5: =H3 -> 0 | L5: =H13 ->  | M5: =H23 -> 0
A6: Frais financiers | B6: ='C.Résultat 2010 + SIG + CAF'!$F$44 -> 848 | C6: CA HT | D6: ='C.Résultat 2010 + SIG + CAF'!$F$9 -> 262969 | E6: R4 = | F6: =B6/D6 -> 0.0032247147 | G6: -0.87 | H6: =F6*G6 -> -0.002805501789 | J6: R2 = | K6: =H4 -> 0.06254998798 | L6: =H14 ->  | M6: =H24 -> 0.07713395374
A7: Frais de personnel | B7: ='C.Résultat 2010 + SIG + CAF'!$G$23 -> 118550 | C7: Valeur ajoutée | D7: ='C.Résultat 2010 + SIG + CAF'!$F$91 -> 217259 | E7: R5 = | F7: =B7/D7 -> 0.5456620899 | G7: -0.1 | H7: =F7*G7 -> -0.05456620899 | J7: R3 = | K7: =H5 -> 0.08266217794 | L7: =H15 ->  | M7: =H25 -> 0.03254646975
G8: Z= | H8: =SUM(H3:H7) -> 0.08784045514 | J8: R4 = | K8: =H6 -> -0.002805501789 | L8: =H16 -> -0.002745419092 | M8: =H26 -> -0.002273189142
A9: =IF(H8<=-0.05,"L'entreprise est très vulnérable",IF(AND(-0.05<H8,H8<=0.04),"La situation est dangereuse, l'entreprise est vulnérable",IF(0.04<H8<=0.1," L'entreprise est vulnérable, il convient d'être prudent","La situation est bonne"))) -> La situation est bonne | J9: R5 = | K9: =H7 -> -0.05456620899 | L9: =H17 -> -0.07378198037 | M9: =H27 -> 
A11: Application du score de Conan et Holder N-1
E12: Ratios | G12: Coefficients | H12: Total
A13: Excédent Brut d'Exploitation | B13: ='C.Résultat 2009 + SIG + CAF'!$F$98 -> 32076 | C13: Total des dettes | D13: =#REF! ->  | E13: R1 = | F13: =B13/D13 ->  | G13: 0.24 | H13: =F13*G13 -> 
A14: Capitaux permanents | B14: =#REF! ->  | C14: Total de l'actif | D14: =#REF! ->  | E14: R2 = | F14: =B14/D14 ->  | G14: 0.22 | H14: =F14*G14 -> 
A15: Réalisable et disponible | B15: =#REF! ->  | E15: R3 = | F15: =B15/D14 ->  | G15: 0.16 | H15: =F15*G15 -> 
A16: Frais financiers | B16: ='C.Résultat 2010 + SIG + CAF'!$F$44 -> 848 | C16: CA HT | D16: ='C.Résultat 2009 + SIG + CAF'!$F$9 -> 268724 | E16: R4 = | F16: =B16/D16 -> 0.003155654128 | G16: -0.87 | H16: =F16*G16 -> -0.002745419092
A17: Frais de personnel | B17: ='C.Résultat 2009 + SIG + CAF'!$F$97 -> 103387 | C17: Valeur ajoutée | D17: ='C.Résultat 2009 + SIG + CAF'!$F$91 -> 140125 | E17: R5 = | F17: =B17/D17 -> 0.7378198037 | G17: -0.1 | H17: =F17*G17 -> -0.07378198037
G18: Z= | H18: =SUM(H13:H17) -> 
A19: =IF(H18<=-0.05,"L'entreprise est très vulnérable",IF(AND(-0.05<H18,H18<=0.04),"La situation est dangereuse, l'entreprise est vulnérable",IF(0.04<H18<=0.1," L'entreprise est vulnérable, il convient d'être prudent","La situation est bonne"))) -> 
A21: Application du score de Conan et Holder N-2
E22: Ratios | G22: Coefficients | H22: Total
A23: Excédent Brut d'Exploitation | B23: ='C.Résultat 2008 + SIG + CAF'!$F$98 -> 0 | C23: Total des dettes | D23: =' BILAN 2009'!$L$35 -> 92669.21 | E23: R1 = | F23: =B23/D23 -> 0 | G23: 0.24 | H23: =F23*G23 -> 0
A24: Capitaux permanents | B24: =' BILAN 2009'!$K$44 -> 43515.12 | C24: Total de l'actif | D24: =' BILAN 2009'!$H$43 -> 124113 | E24: R2 = | F24: =B24/D24 -> 0.3506088806 | G24: 0.22 | H24: =F24*G24 -> 0.07713395374
A25: Réalisable et disponible | B25: =' BILAN 2009'!$E$46 -> 25246.5 | E25: R3 = | F25: =B25/D24 -> 0.2034154359 | G25: 0.16 | H25: =F25*G25 -> 0.03254646975
A26: Frais financiers | B26: ='C.Résultat 2008 + SIG + CAF'!$F$44 -> 342 | C26: CA HT | D26: ='C.Résultat 2008 + SIG + CAF'!$F$9 -> 130891 | E26: R4 = | F26: =B26/D26 -> 0.002612861083 | G26: -0.87 | H26: =F26*G26 -> -0.002273189142
A27: Frais de personnel | B27: ='C.Résultat 2008 + SIG + CAF'!$F$97 -> 0 | C27: Valeur ajoutée | D27: ='C.Résultat 2008 + SIG + CAF'!$F$91 -> 0 | E27: R5 = | F27: =B27/D27 ->  | G27: -0.1 | H27: =F27*G27 -> 
G28: Z= | H28: =SUM(H23:H27) -> 
A29: =IF(H28<=-0.05,"L'entreprise est très vulnérable",IF(AND(-0.05<H28,H28<=0.04),"La situation est dangereuse, l'entreprise est vulnérable",IF(0.04<H28<=0.1," L'entreprise est vulnérable, il convient d'être prudent","La situation est bonne"))) -> 

Sheet Feuil1
